bitfinex-derivatives/quotes_SOLF0:USTF0_20250730
["timestamp","ask_amount","ask_price","bid_price","bid_amount"]
[1753912404807,3.25,175.98,175.96,7.11426298]
[1753912405003,3.25,175.98,175.97,105.56]
[1753912405205,7.70896578,175.98,175.97,108.6]
[1753912405511,3.25,175.98,175.97,108.6]
[1753912406103,7.71124496,175.98,175.97,108.6]
[1753912406507,4.74990935,176.02,175.97,105.56]
[1753912406707,4.74990935,176.07,175.99,4.07426298]
[1753912406912,4.74990935,176.05,175.98,105.56]
[1753912407112,3.25,176.04,175.99,4.07426298]
[1753912407412,3.25,176.03,176.0,105.58]
[1753912407609,5.6812,176.03,176.0,105.58]
[1753912407812,3.25,176.02,175.98,4.07426298]
[1753912408106,3.25,176.02,175.98,109.65426298]
[1753912408314,5.682,176.0,175.98,109.65426298]
[1753912408511,3.25,175.99,175.98,109.65426298]
[1753912408913,3.25,175.99,175.98,105.56]
[1753912409117,3.25,175.99,175.98,109.63426298]
[1753912409614,3.25,175.99,175.96,5.6831]
[1753912409615,3.25,175.99,175.97,4.07426298]
[1753912410012,3.25,175.99,175.97,109.63426298]
[1753912410415,3.25,175.99,175.88,381.98]
[1753912410811,3.25,175.99,175.92,4.07426298]
[1753912411508,3.25,175.99,175.92,110.01426298]
[1753912412109,7.99990935,175.99,175.92,110.01426298]
[1753912412310,8.7744,175.93,175.92,4.07426298]
[1753912412919,5.6845,175.92,175.91,106.02]
[1753912413118,8.7745,175.92,175.91,110.09426298]
[1753912413318,8.7745,175.92,175.91,4.07426298]
[1753912413512,8.7748,175.91,175.9,106.1]
[1753912414218,8.82417233,175.99,175.9,106.1]
[1753912414418,3.09,175.98,175.89,4.07426298]
[1753912414612,3.09,175.98,175.9,106.1]
[1753912415021,5.6848,175.91,175.9,106.1]
[1753912415210,3.09,175.96,175.89,110.15426298]
[1753912417830,3.09,175.96,175.89,106.08]
[1753912418123,3.09,175.9,175.89,106.08]
[1753912419618,5.6853,175.9,175.88,4.07426298]
[1753912419823,3.09,175.89,175.86,4.07426298]
[1753912420026,3.09,175.89,175.86,110.05426298]
[1753912420223,8.7761,175.87,175.86,110.05426298]
[1753912420417,3.09,175.91,175.83,4.07426298]
[1753912420617,3.09,175.91,175.83,110.03426298]
[1753912421723,5.687,175.85,175.83,110.03426298]
[1753912421915,8.777,175.85,175.83,110.03426298]
[1753912422114,3.09,175.84,175.83,110.03426298]
[1753912423722,8.7771,175.84,175.83,105.96]
[1753912430333,5.6871,175.84,175.82,4.07426298]
[1753912430532,3.09,175.83,175.82,109.93426298]
[1753912431028,3.09,175.83,175.82,4.07426298]
[1753912431233,3.09,175.83,175.82,109.93426298]
[1753912432433,5.6873,175.84,175.82,109.91426298]
[1753912432624,3.09,175.83,175.82,109.91426298]
[1753912434531,8.7774,175.83,175.82,109.91426298]
[1753912435631,8.7774,175.83,175.82,109.81426298]
[1753912437437,8.7774,175.83,175.82,105.74]
[1753912443637,8.7774,175.83,175.82,105.58]
[1753912444541,8.7774,175.83,175.82,109.65426298]
[1753912450842,8.7774,175.83,175.82,108.14830284]
[1753912451038,3.09,175.83,175.71,382.22]
[1753912451242,3.05,175.82,175.75,105.54]
[1753912451444,3.05,175.82,175.77,2.60830284]
[1753912451645,3.05,175.8,175.77,108.14830284]
[1753912452439,2.60830284,175.81,175.77,108.14830284]
[1753912452440,8.739,175.78,175.77,108.14830284]
[1753912453240,8.739,175.78,175.77,2.60830284]
[1753912453550,8.739,175.78,175.77,108.14830284]
[1753912453742,8.739,175.78,175.77,2.60830284]
[1753912454744,5.6894,175.77,175.76,105.56]
[1753912454944,8.7394,175.77,175.76,105.56]
[1753912455144,4.07807796,175.82,175.72,5.6909]
[1753912455348,3.05,175.75,175.73,109.63807796]
[1753912455754,3.05,175.74,175.73,109.63807796]
[1753912457157,3.05,175.83,175.73,115.33807796]
[1753912457458,3.05,175.82,175.81,4.07807796]
[1753912457653,3.05,175.82,175.81,109.63807796]
[1753912457956,3.05,175.89,175.81,109.63807796]
[1753912458155,3.05,175.89,175.85,4.07807796]
[1753912458458,3.05,175.93,175.87,4.07807796]
[1753912458656,3.05,175.9,175.88,105.56]
[1753912459855,3.05,175.9,175.89,9.76357796]
[1753912460259,8.82798731,175.98,175.89,9.76357796]
[1753912460460,3.05,175.91,175.89,9.76357796]
[1753912463561,5.6844,175.93,175.89,9.76357796]
[1753912463761,3.05,175.9,175.89,9.76357796]
[1753912466357,3.05,175.92,175.9,5.6849]
[1753912466562,3.05,175.92,175.91,105.52]
[1753912466758,5.6839,175.94,175.91,109.59807796]
[1753912466970,11.361,176.05,175.93,4.07807796]
[1753912466971,3.05,175.95,175.93,4.07807796]
[1753912467156,3.05,175.95,175.94,105.52]
[1753912467564,3.05,176.01,175.94,105.52]
[1753912467765,3.05,175.99,175.93,109.59807796]
[1753912468162,5.6835,175.96,175.93,109.59807796]
[1753912468364,4.07807796,176.0,175.93,109.59807796]
[1753912468564,3.05,175.99,175.93,109.59807796]
[1753912469263,5.6838,175.95,175.93,109.59807796]
[1753912469461,3.15,175.94,175.93,109.59807796]
[1753912471166,3.15,175.99,175.93,109.59807796]
[1753912472466,5.6834,175.96,175.93,109.59807796]
[1753912472663,3.15,175.95,175.93,109.59807796]
[1753912472864,3.15,175.94,175.93,109.59807796]
[1753912473770,5.6831,175.97,175.93,115.28227796]
[1753912473972,3.15,175.96,175.93,115.28227796]
[1753912475172,3.15,175.96,175.94,5.6838]
[1753912475372,3.15,175.96,175.93,109.59807796]
[1753912475672,3.15,175.98,175.95,4.07807796]
[1753912476068,3.15,175.97,175.95,4.07807796]
[1753912476467,3.15,175.96,175.95,4.07807796]
[1753912479176,3.15,175.96,175.95,9.76157796]
[1753912479372,4.07807796,176.06,175.95,4.07807796]
[1753912479580,3.15,176.05,175.93,105.52]
[1753912479773,3.15,176.0,175.98,4.07807796]
[1753912479973,3.15,176.0,175.99,105.46]
[1753912480368,3.15,176.0,175.98,4.07807796]
[1753912480774,3.15,175.99,175.98,109.51807796]
[1753912482479,3.15,175.97,175.87,495.99874085]
[1753912482680,3.15,175.97,175.96,4.07807796]
[1753912482873,3.15,175.97,175.96,109.51807796]
[1753912484280,5.6823,175.99,175.96,109.51807796]
[1753912484482,8.8323,175.99,175.96,109.51807796]
[1753912485286,8.8323,175.99,175.96,115.20127796]
[1753912485486,8.8323,175.99,175.96,109.51807796]
[1753912486483,3.15,175.98,175.96,109.51807796]
[1753912486690,3.15,175.97,175.96,109.51807796]
[1753912486891,3.15,175.97,175.96,115.20127796]
[1753912487189,3.15,175.97,175.96,109.51807796]
[1753912488390,3.15,175.97,175.96,115.20127796]
[1753912491087,3.15,176.05,175.96,109.51807796]
[1753912491292,3.15,176.05,175.98,4.07807796]
[1753912491482,5.6814,176.02,175.98,9.76047796]
[1753912491884,3.15,176.0,175.98,9.76047796]
[1753912493292,3.15,175.99,175.98,9.76047796]
[1753912493793,5.681,176.03,176.0,5.6818]
[1753912493992,3.15,176.02,176.0,111.1018]
[1753912494891,3.15,176.02,176.0,115.17987796]
[1753912498288,3.15,176.02,175.98,4.07807796]
[1753912498489,3.15,176.02,175.99,105.4]
[1753912498892,5.6819,176.01,175.99,105.4]
[1753912499191,3.19,176.0,175.99,105.4]
[1753912502293,3.19,176.0,175.99,111.0822]
[1753912504497,3.19,176.0,175.99,105.4]
[1753912506593,7.65897266,176.0,175.99,105.4]
[1753912510604,7.65897266,176.0,175.99,111.0822]
[1753912512698,3.19,176.0,175.99,111.0822]
[1753912512899,4.74990935,176.05,175.87,507.37064085]
[1753912512900,7.26807796,176.04,175.87,125.35064085]
[1753912513100,3.19,176.0,175.95,4.07807796]
[1753912513300,3.19,175.98,175.96,105.38]
[1753912513501,3.19,176.01,175.87,113.97874085]
[1753912513805,3.19,175.99,175.94,4.07807796]
[1753912514001,3.19,175.97,175.95,105.38]
[1753912515401,3.19,175.97,175.95,111.0633]
[1753912516804,8.873,175.97,175.95,105.38]
[1753912517005,5.683,175.97,175.95,105.38]
[1753912517204,3.19,175.96,175.95,105.38]
[1753912520916,3.19,175.96,175.94,4.07807796]
[1753912521114,3.19,175.96,175.95,105.36]
[1753912522318,3.19,175.96,175.94,4.07807796]
[1753912522521,3.19,175.99,175.94,105.36]
[1753912522818,3.19,175.97,175.94,105.36]
[1753912523019,4.47727282,175.96,175.94,105.36]
[1753912523220,8.8735,175.95,175.94,105.36]
[1753912529419,4.74990935,176.01,175.94,109.43807796]
[1753912529626,4.47401644,176.0,175.94,109.43807796]
[1753912529825,3.08,175.98,175.94,109.43807796]
[1753912530027,4.74990935,176.02,175.94,109.43807796]
[1753912530226,3.08,175.95,175.94,109.43807796]
[1753912531325,8.7635,175.95,175.94,109.43807796]
[1753912531727,5.6835,175.95,175.94,109.43807796]
[1753912532227,8.7635,175.95,175.94,109.43807796]
[1753912538829,3.08,175.95,175.94,109.43807796]
[1753912539531,3.08,175.95,175.94,105.36]
[1753912540726,3.08,175.95,175.94,107.9647169]
[1753912542026,8.7635,175.95,175.94,107.9647169]
[1753912547842,5.6843,175.93,175.9,5.685]
[1753912548136,3.08,175.97,175.92,2.6047169]
[1753912548337,3.08,175.95,175.93,105.34]
[1753912549033,3.08,175.95,175.94,2.6047169]
[1753912549034,8.7636,175.95,175.94,2.6047169]
[1753912550835,5.6841,175.94,175.91,5.6848]
[1753912551037,3.08,175.93,175.92,105.34]
[1753912551239,3.08,175.93,175.92,107.9447169]
[1753912557040,3.08,175.93,175.92,2.6047169]
[1753912557235,3.08,175.93,175.92,107.9247169]
[1753912560141,3.08,175.93,175.92,105.32]
[1753912560344,3.08,175.93,175.92,107.9247169]
[1753912563237,3.14,175.96,175.92,107.9247169]
[1753912563430,4.770869,176.01,175.95,2.6047169]
[1753912563630,4.47566487,176.0,175.97,2.6047169]
[1753912563839,4.47566487,175.99,175.97,2.6047169]
[1753912564140,7.61566487,175.98,175.97,2.6047169]
[1753912565240,7.61566487,175.98,175.96,105.3]
[1753912565442,7.61566487,175.97,175.96,105.3]
[1753912565934,8.8235,175.96,175.87,113.97874085]
[1753912566131,3.14,175.95,175.94,2.6047169]
[1753912566331,7.61571284,175.95,175.94,107.9047169]
[1753912569642,7.61571284,175.95,175.94,2.6047169]
[1753912569842,7.61571284,175.95,175.94,107.8847169]
[1753912570945,4.47571284,175.95,175.94,107.8847169]
[1753912571142,3.14,175.95,175.94,107.8847169]
[1753912576644,3.14,175.99,175.94,107.8847169]
[1753912576845,3.14,175.96,175.94,107.8847169]
[1753912577348,3.14,175.95,175.94,107.8847169]
[1753912577549,5.683,175.97,175.94,107.8847169]
[1753912577748,4.47567517,175.96,175.94,107.8847169]
[1753912577948,3.14,175.96,175.94,107.8847169]
[1753912578349,3.14,175.96,175.94,113.5685169]
[1753912579447,3.14,175.96,175.94,107.8847169]
[1753912579847,3.14,175.95,175.94,107.8847169]
[1753912580850,3.14,175.95,175.94,105.28]
[1753912581051,3.14,175.95,175.94,107.8847169]
[1753912589253,3.14,175.95,175.94,107.8447169]
[1753912591758,3.14,175.95,175.94,105.24]
[1753912592054,3.14,175.95,175.94,107.8447169]
[1753912593561,3.14,175.95,175.94,113.5286169]
[1753912594059,3.14,175.95,175.94,107.8447169]
[1753912596061,3.14,175.95,175.94,2.6047169]
[1753912596362,3.14,175.95,175.94,107.8247169]
[1753912599765,3.19,176.0,175.94,107.8247169]
[1753912599968,3.19,176.0,175.98,2.6047169]
[1753912600267,3.19,176.0,175.98,107.8247169]
[1753912601965,8.8719,176.0,175.98,107.8247169]
[1753912602162,5.6819,176.0,175.98,107.8247169]
[1753912602363,3.19,175.99,175.98,107.8247169]
[1753912604963,5.6819,176.0,175.98,107.8247169]
[1753912605165,3.19,176.04,175.98,107.8247169]
[1753912605469,3.19,176.02,176.01,2.6047169]
[1753912605765,3.19,176.02,176.01,107.8047169]
[1753912610372,5.6811,176.03,176.01,107.8047169]
[1753912610665,3.19,176.02,176.01,107.8047169]
[1753912613272,5.6807,176.04,176.01,107.8047169]
[1753912613473,3.19,176.03,176.01,107.8047169]
[1753912613776,5.6807,176.04,176.01,107.8047169]
[1753912613971,3.19,176.03,176.01,107.8047169]
[1753912617667,3.19,176.06,176.01,107.8047169]
[1753912617871,2.6047169,176.07,176.01,107.8047169]
[1753912617872,3.19,176.04,176.01,107.8047169]
[1753912618583,3.19,176.04,176.02,5.6811]
[1753912618880,3.19,176.04,176.01,107.8047169]
[1753912619180,3.19,176.04,176.03,2.6047169]
[1753912620391,3.19,176.04,176.01,110.8815]
[1753912620586,3.01,176.04,176.0,105.14]
[1753912620782,3.01,176.02,176.0,107.7447169]
[1753912621981,3.01,176.02,176.0,113.4264169]
[1753912622187,3.01,176.01,176.0,113.4264169]
[1753912622389,3.01,176.06,176.0,107.7447169]
[1753912622585,4.44791007,176.05,176.02,2.6047169]
[1753912622788,3.01,176.04,176.02,2.6047169]
[1753912623286,3.01,176.04,176.02,8.2858169]
[1753912626095,3.01,176.04,176.03,5.6809]
[1753912627690,3.01,176.04,176.02,8.2859169]
[1753912628385,3.01,176.03,176.02,8.2859169]
[1753912629093,3.01,176.03,176.02,5.6812]
[1753912629401,3.01,176.03,176.02,8.2859169]
[1753912633799,3.01,176.03,176.02,2.6047169]
[1753912634299,3.01,176.03,176.01,107.7047169]
[1753912634598,3.01,176.03,176.01,105.1]
[1753912634800,3.01,176.03,176.01,107.7047169]
[1753912635596,3.01,176.02,176.01,107.7047169]
[1753912636702,8.6913,176.02,176.01,107.7047169]
[1753912637203,8.6913,176.02,176.01,2.6047169]
[1753912638796,8.6913,176.02,176.0,105.08]
[1753912639000,3.01,176.01,176.0,107.6847169]
[1753912640501,3.01,176.0,175.97,5.6828]
[1753912640703,3.01,176.0,175.98,107.6847169]
[1753912641201,8.6921,176.0,175.98,107.6847169]
[1753912641502,3.01,175.99,175.98,107.6847169]
[1753912641798,3.01,175.98,175.97,2.6047169]
[1753912642503,3.01,175.97,175.95,2.6047169]
[1753912643399,5.6832,175.96,175.95,2.6047169]
[1753912643597,8.6932,175.96,175.95,2.6047169]
[1753912645705,8.6932,175.96,175.93,105.08]
[1753912646007,5.6832,175.96,175.95,2.6047169]
[1753912646506,8.6932,175.96,175.95,2.6047169]
[1753912672233,5.6836,175.95,175.93,105.06]
[1753912672529,3.07,175.94,175.93,105.06]
[1753912672732,3.07,175.94,175.91,97.16124484]
[1753912672922,3.07,175.93,175.92,105.04]
[1753912673122,3.07,175.93,175.85,381.96]
[1753912673326,8.7544,175.93,175.87,5.6859]
[1753912673525,3.07,175.93,175.86,105.04]
[1753912673726,3.07,175.93,175.91,2.6047169]
[1753912673934,5.6846,175.92,175.91,2.6047169]
[1753912674131,3.07,175.92,175.9,2.6047169]
[1753912674433,3.07,175.92,175.85,381.96]
[1753912674434,5.6851,175.9,175.89,2.6047169]
[1753912674635,5.6851,175.9,175.88,2.6047169]
[1753912674636,3.07,175.9,175.88,2.6047169]
[1753912675727,5.6856,175.89,175.88,2.6047169]
[1753912676032,8.7556,175.89,175.88,2.6047169]
[1753912677437,5.6862,175.87,175.86,2.6047169]
[1753912677631,8.7562,175.87,175.86,107.6247169]
[1753912682538,3.07,175.87,175.86,107.6247169]
[1753912687143,5.6859,175.88,175.86,107.6247169]
[1753912687739,3.29,175.87,175.86,107.6247169]
[1753912689546,8.9761,175.87,175.86,107.6247169]
[1753912690754,8.9761,175.87,175.86,2.6047169]
[1753912692545,5.6868,175.85,175.84,105.02]
[1753912692750,8.9768,175.85,175.84,107.6247169]
[1753912695151,8.9768,175.85,175.84,2.6047169]
[1753912703158,3.29,175.85,175.82,2.6047169]
[1753912704271,5.6874,175.83,175.82,2.6047169]
[1753912704469,8.9774,175.83,175.82,2.6047169]
[1753912711571,8.8577,175.82,175.81,2.6047169]
[1753912714073,3.17,175.88,175.81,2.6047169]
[1753912714274,3.17,175.88,175.86,2.6047169]
[1753912715179,3.17,175.88,175.84,104.94]
[1753912715373,3.17,175.88,175.86,2.6047169]
[1753912716379,8.8561,175.87,175.86,2.6047169]
[1753912722685,3.17,175.93,175.86,2.6047169]
[1753912722887,7.33380892,175.97,175.91,2.6047169]
[1753912723089,3.17,175.92,175.9,104.9]
[1753912723388,3.17,175.93,175.91,2.6047169]
[1753912723686,3.17,175.93,175.92,2.6047169]
[1753912725388,8.8542,175.93,175.92,2.6047169]
[1753912727493,3.17,175.93,175.9,2.6047169]
[1753912728286,5.6848,175.91,175.9,2.6047169]
[1753912728487,8.8548,175.91,175.9,2.6047169]
[1753912728784,5.6855,175.89,175.88,4.07209218]
[1753912728991,8.8555,175.89,175.88,4.07209218]
[1753912737587,3.17,175.98,175.88,4.07209218]
[1753912737788,3.17,175.98,175.87,104.88]
[1753912737789,3.17,175.98,175.92,4.07209218]
[1753912737989,3.17,175.98,175.92,108.89209218]
[1753912740289,3.32,175.94,175.92,108.89209218]
[1753912741194,9.0039,175.94,175.92,108.89209218]
[1753912741389,5.6839,175.94,175.92,108.89209218]
[1753912741595,3.32,175.93,175.92,108.89209218]
[1753912742792,3.32,175.97,175.8,17.06]
[1753912742995,4.45625861,175.96,175.89,4.07209218]
[1753912743196,9.0048,175.91,175.9,104.78]
[1753912744196,5.6851,175.9,175.89,4.07209218]
[1753912744397,3.32,175.96,175.88,104.78]
[1753912744593,4.74238296,175.99,175.88,104.78]
[1753912744594,3.32,175.94,175.88,104.78]
[1753912744791,5.6855,175.89,175.88,104.78]
[1753912744992,3.32,175.89,175.85,4.07209218]
[1753912745193,3.32,175.89,175.86,104.78]
[1753912746202,5.6861,175.87,175.86,104.78]
[1753912746394,9.0061,175.87,175.86,104.78]
[1753912751805,5.6871,175.84,175.83,4.07209218]
[1753912752007,9.0071,175.84,175.83,108.85209218]
[1753912752608,9.0078,175.82,175.81,4.07209218]
[1753912752801,3.32,175.82,175.79,4.07209218]
[1753912753203,3.32,175.82,175.78,104.76]
[1753912753510,9.009,175.79,175.78,104.76]
[1753912754408,9.0094,175.77,175.76,4.07209218]
[1753912756902,5.6897,175.76,175.75,486.76]
[1753912757211,9.0097,175.76,175.75,104.76]
[1753912759605,5.69,175.75,175.72,4.07209218]
[1753912759811,3.32,175.74,175.73,104.78]
[1753912760109,3.32,175.76,175.73,104.78]
[1753912760311,3.32,175.82,175.75,4.07209218]
[1753912760502,3.32,175.82,175.79,4.07209218]
[1753912760707,3.32,175.82,175.81,4.07209218]
[1753912761110,3.32,175.85,175.81,4.07209218]
[1753912761308,3.32,175.85,175.83,4.07209218]
[1753912761608,3.32,175.85,175.83,108.85209218]
[1753912763112,5.6859,175.88,175.83,114.53949218]
[1753912763316,3.32,175.86,175.83,114.53949218]
[1753912763914,3.32,175.86,175.85,4.07209218]
[1753912771812,3.04,175.87,175.85,4.07209218]
[1753912772211,5.6859,175.88,175.85,4.07209218]
[1753912772416,3.04,175.86,175.85,4.07209218]
[1753912787224,3.04,175.86,175.85,9.75889218]
[1753912788329,3.04,175.86,175.85,4.07209218]
[1753912790827,3.04,175.87,175.85,4.07209218]
[1753912791027,3.04,175.86,175.85,9.75889218]
[1753912792329,3.04,175.95,175.85,4.07209218]
[1753912792532,3.04,175.93,175.89,4.07209218]
[1753912792726,3.04,175.93,175.89,108.73209218]
[1753912793725,3.04,175.9,175.89,108.73209218]
[1753912795223,8.7251,175.9,175.89,108.73209218]
[1753912798036,8.7251,175.9,175.89,104.66]
[1753912798533,3.04,175.94,175.87,4.07209218]
[1753912798735,3.3,175.92,175.88,104.64]
[1753912799633,5.6855,175.89,175.88,104.64]
[1753912799832,3.3,175.92,175.85,4.07209218]
[1753912800032,3.3,175.9,175.86,104.62]
[1753912800334,4.49594112,175.89,175.77,4.07209218]
[1753912800540,4.49594112,175.89,175.76,382.2]
[1753912800541,3.3,175.87,175.8,4.07209218]
[1753912800844,3.3,175.82,175.81,104.62]
[1753912801043,3.3,175.9,175.81,108.69209218]
[1753912801348,3.3,175.88,175.86,4.07209218]
[1753912802229,5.6856,175.88,175.86,4.07209218]
[1753912802439,3.3,175.87,175.86,4.07209218]
[1753912802845,8.9859,175.87,175.86,4.07209218]
[1753912803134,3.3,175.87,175.86,4.07209218]
[1753912803339,3.3,175.87,175.85,104.62]
[1753912804135,3.3,175.87,175.84,4.07209218]
[1753912804341,3.3,175.87,175.84,108.69209218]
[1753912804638,3.3,175.87,175.84,4.07209218]
[1753912804840,3.3,175.87,175.76,399.26]
[1753912804841,3.3,175.87,175.81,4.07209218]
[1753912805030,11.3689,175.92,175.81,4.07209218]
[1753912805031,5.6872,175.83,175.82,104.62]
[1753912805231,3.3,175.83,175.79,4.07209218]
[1753912805432,3.3,175.83,175.8,104.62]
[1753912805943,3.3,175.81,175.8,104.62]
[1753912806441,8.9879,175.81,175.8,104.62]
[1753912806743,3.3,175.81,175.77,4.07209218]
[1753912806941,3.3,175.81,175.77,108.69209218]
[1753912807542,5.6887,175.79,175.77,108.69209218]
[1753912807844,3.3,175.78,175.77,108.69209218]
[1753912810542,4.74964172,175.88,175.77,108.69209218]
[1753912810743,3.3,175.84,175.79,4.07209218]
[1753912810943,8.9871,175.84,175.79,4.07209218]
[1753912811144,3.3,175.83,175.79,4.07209218]
[1753912811345,3.3,175.83,175.81,4.07209218]
[1753912811541,8.9873,175.83,175.81,4.07209218]
[1753912811741,3.3,175.82,175.81,4.07209218]
[1753912812644,3.3,175.83,175.81,4.07209218]
[1753912812849,3.3,175.91,175.82,110.3075]
[1753912813045,3.3,175.94,175.85,4.07209218]
[1753912813250,3.3,175.92,175.87,4.07209218]
[1753912813657,3.3,175.89,175.87,4.07209218]
[1753912813845,3.3,175.88,175.87,4.07209218]
[1753912814245,5.6847,175.91,175.87,4.07209218]
[1753912814442,3.3,175.89,175.87,4.07209218]
[1753912815248,5.6851,175.9,175.87,4.07209218]
[1753912815755,3.3,175.88,175.87,4.07209218]
[1753912818264,8.9856,175.88,175.87,4.07209218]
[1753912818548,4.07209218,175.91,175.82,104.6]
[1753912818749,3.3,175.89,175.84,4.07209218]
[1753912818950,3.3,175.89,175.85,4.07209218]
[1753912819354,3.3,175.87,175.85,4.07209218]
[1753912821949,5.6857,175.88,175.85,4.07209218]
[1753912822156,3.3,175.87,175.85,4.07209218]
[1753912822562,3.3,175.87,175.83,108.67209218]
[1753912822752,3.3,175.87,175.83,104.6]
[1753912823154,5.6864,175.86,175.83,104.6]
[1753912823355,3.3,175.85,175.83,104.6]
[1753912824253,3.3,175.91,175.83,108.67209218]
[1753912824657,3.3,175.87,175.8,104.58]
[1753912825052,5.6879,175.81,175.8,104.58]
[1753912825256,4.07209218,175.86,175.77,7.29209218]
[1753912825460,4.07209218,175.86,175.78,104.58]
[1753912826264,4.07209218,175.86,175.78,107.8]
[1753912826563,4.07209218,175.86,175.79,3.22]
[1753912826958,5.6881,175.81,175.79,3.22]
[1753912827161,5.6881,175.81,175.8,3.22]
[1753912827363,3.3,175.85,175.76,4.07209218]
[1753912827666,3.3,175.77,175.76,7.29209218]
[1753912827962,8.57910584,175.84,175.77,3.22]
[1753912827963,4.07209218,175.84,175.77,3.22]
[1753912828165,4.50699382,175.83,175.77,3.22]
[1753912828366,5.6891,175.78,175.77,3.22]
[1753912828558,4.07209218,175.86,175.77,3.22]
[1753912828757,5.6882,175.81,175.79,3.2]
[1753912829165,4.74964172,175.91,175.81,3.2]
[1753912829368,4.07209218,175.89,175.81,3.2]
[1753912829564,4.50527107,175.88,175.83,3.2]
[1753912829756,3.12,175.9,175.83,3.2]
[1753912829953,3.12,175.9,175.81,104.6]
[1753912829954,4.74964172,175.97,175.87,4.07209218]
[1753912830158,3.12,175.91,175.88,3.2]
[1753912830555,3.12,175.95,175.89,4.07209218]
[1753912830765,3.12,175.94,175.92,3.2]
[1753912830963,3.12,175.96,175.92,3.2]
[1753912831267,4.07209218,176.01,175.92,3.2]
[1753912831466,3.12,175.95,175.92,3.2]
[1753912831864,8.8036,175.95,175.92,3.2]
[1753912832363,5.6837,175.94,175.92,3.2]
[1753912833068,5.6837,175.94,175.92,4.07209218]
[1753912833262,8.8037,175.94,175.93,3.2]
[1753912833463,8.804,175.93,175.92,3.2]
[1753912833763,3.12,175.96,175.88,3.2]
[1753912833960,3.12,175.94,175.88,3.2]
[1753912835068,3.12,175.89,175.88,3.2]
[1753912835473,3.12,175.92,175.86,3.2]
[1753912835771,3.12,175.87,175.86,3.2]
[1753912836466,4.07209218,175.93,175.84,3.2]
[1753912836666,3.12,175.86,175.83,3.2]
[1753912836862,3.12,175.86,175.81,3.2]
[1753912837164,3.12,175.86,175.82,3.2]
[1753912837765,8.8074,175.83,175.82,3.2]
[1753912839570,5.6878,175.82,175.8,108.83209218]
[1753912839762,8.8078,175.82,175.81,3.2]
[1753912844868,3.12,175.82,175.81,3.2]
[1753912847277,3.12,175.88,175.81,4.07209218]
[1753912847468,4.07209218,175.91,175.83,4.07209218]
[1753912847779,8.8062,175.87,175.85,3.2]
[1753912848578,3.12,175.87,175.85,3.2]
[1753912848781,3.12,175.88,175.85,8.8867]
[1753912848976,3.12,175.88,175.86,3.2]
[1753912849678,4.07209218,175.93,175.83,4.07209218]
[1753912849886,3.12,175.87,175.86,3.2]
[1753912850379,8.8061,175.87,175.86,3.2]
[1753912851776,4.07209218,175.91,175.78,3.2]
[1753912851981,3.12,175.84,175.81,4.07209218]
[1753912852172,3.12,175.84,175.81,7.27209218]
[1753912852382,3.12,175.84,175.82,3.2]
[1753912853184,3.12,175.83,175.82,3.2]
[1753912853582,8.807,175.85,175.82,3.2]
[1753912853885,3.12,175.84,175.82,3.2]
[1753912854085,3.12,175.84,175.83,107.86]
[1753912854384,4.07209218,175.9,175.83,104.66]
[1753912854585,3.12,175.85,175.84,3.2]
[1753912855284,8.807,175.85,175.84,3.2]